fUSD/lending_fUSD_20250824
["ID","MTS","AMOUNT","RATE_DAILY","PERIOD"]
[381093739,1756032644456,-150.0,0.00024115,2]
[381093741,1756032644466,-1090.0,0.00024116,2]
[381093743,1756032644476,-19581.66156647,0.00024128,2]
[381093745,1756032644486,-157.82197178,0.00024142,4]
[381093747,1756032644496,-500.0,0.00024148,2]
[381093749,1756032644506,-150.0,0.00024167,4]
[381093750,1756032644517,-150.0,0.00024168,4]
[381093751,1756032644527,-157.82197178,0.00024169,4]
[381093752,1756032644537,-150.0,0.00024173,4]
[381093753,1756032644549,-500.80308435,0.00024182,2]
[381093754,1756032644559,-150.0,0.00024184,4]
[381093755,1756032644569,-157.82197178,0.00024196,4]
[381093756,1756032644579,-150.0,0.00024199,4]
[381093757,1756032644590,-3616.94452082,0.0002421,2]
[381093758,1756032644600,-150.0,0.00024218,4]
[381093759,1756032644610,-150.0,0.00024218,4]
[381093760,1756032644620,-150.0,0.0002422,4]
[381093761,1756032644633,-157.82197178,0.00024223,4]
[381093762,1756032644643,-150.0,0.00024232,4]
[381093763,1756032644653,-150.0,0.00024237,4]
[381093764,1756032644663,-238.0,0.00024237,2]
[381093765,1756032644674,-157.82197178,0.0002425,4]
[381093766,1756032644683,-150.0,0.00024252,4]
[381093768,1756032644693,-150.0,0.0002427,4]
[381093769,1756032644703,-150.0,0.00024273,4]
[381093771,1756032644714,-157.82197178,0.00024277,4]
[381093773,1756032644724,-150.0,0.00024283,4]
[381093775,1756032644734,-150.0,0.0002429,4]
[381093777,1756032644743,-150.0,0.00024294,4]
[381093779,1756032644753,-3850.07722659,0.000243,2]
[381093781,1756032644763,-157.82197178,0.00024305,4]
[381093783,1756032644774,-150.0,0.00024321,4]
[381093785,1756032644783,-150.0,0.00024321,4]
[381093787,1756032644792,-150.0,0.00024321,4]
[381093789,1756032644802,-423.70651755,0.00024324,2]
[381093791,1756032644812,-150.0,0.00024325,4]
[381093793,1756032644821,-157.82197178,0.00024332,4]
[381093795,1756032644831,-2000.0,0.00024338,2]
[381093797,1756032644839,-150.0,0.00024348,4]
[381093799,1756032644849,-157.82197178,0.00024359,4]
[381093801,1756032644858,-150.0,0.00024359,4]
[381093803,1756032644867,-150.0,0.00024366,4]
[381093805,1756032644877,-150.0,0.00024373,4]
[381093807,1756032644886,-151.0,0.00024375,7]
[381093809,1756032644895,-151.0,0.00024375,7]
[381093811,1756032644904,-171.044596,0.00024375,7]
[381093813,1756032644914,-171.044596,0.00024375,7]
[381093815,1756032644923,-171.044596,0.00024375,7]
[381093817,1756032644932,-171.044596,0.00024375,7]
[381093819,1756032644941,-150.0,0.00024378,4]
[381093820,1756032644951,-198.68158883,0.00024381,2]
[381093822,1756032644960,-157.82197178,0.00024386,4]
[381093824,1756032644970,-150.0,0.0002439,4]
[381093826,1756032644979,-151.0,0.00024391,7]
[381093828,1756032644989,-151.0,0.00024391,7]
[381093830,1756032644998,-151.0,0.00024391,7]
[381093832,1756032645008,-151.0,0.00024391,7]
[381093835,1756032645018,-151.0,0.00024391,7]
[381093837,1756032645029,-5000.0,0.000244,2]
[381093838,1756032645040,-151.0,0.000244,7]
[381093840,1756032645050,-258.57912,0.000244,7]
[381093842,1756032645059,-303.951748,0.000244,7]
[381093845,1756032645069,-303.951748,0.000244,7]
[381093846,1756032645078,-303.951748,0.000244,7]
[381093848,1756032645088,-303.951748,0.000244,7]
[381093850,1756032645097,-151.0,0.000244,7]
[381093852,1756032645106,-151.0,0.000244,7]
[381093854,1756032645116,-151.0,0.000244,7]
[381093856,1756032645125,-151.0,0.000244,7]
[381093858,1756032645135,-151.0,0.000244,7]
[381093860,1756032645144,-151.0,0.000244,7]
[381093862,1756032645153,-151.0,0.000244,7]
[381093864,1756032645162,-151.0,0.000244,7]
[381093866,1756032645172,-151.0,0.000244,7]
[381093868,1756032645183,-150.0,0.00024406,4]
[381093870,1756032645195,-157.82197178,0.00024413,4]
[381093872,1756032645204,-151.0,0.00024424,7]
[381093874,1756032645213,-151.0,0.00024424,7]
[381093876,1756032645222,-151.0,0.00024424,7]
[381093878,1756032645233,-151.0,0.00024424,7]
[381093880,1756032645242,-151.0,0.00024424,7]
[381093882,1756032645252,-151.0,0.00024424,7]
[381093884,1756032645261,-176.234037,0.00024424,7]
[381093886,1756032645271,-176.234037,0.00024424,7]
[381093888,1756032645280,-176.234037,0.00024424,7]
[381093890,1756032645290,-176.234037,0.00024424,7]
[381093892,1756032645299,-151.0,0.00024424,7]
[381093894,1756032645309,-151.0,0.00024424,7]
[381093896,1756032645322,-150.0,0.00024424,4]
[381093898,1756032645332,-150.0,0.00024424,4]
[381093900,1756032645342,-150.0,0.0002443,4]
[381093902,1756032645352,-157.82197178,0.0002444,4]
[381093904,1756032645362,-150.0,0.0002445,4]
[381093906,1756032645372,-13812.64853837,0.00024456,2]
[381094048,1756032646760,-5769.0130281,0.00024456,2]
[381094050,1756032646771,-151.0,0.00024456,7]
[381094052,1756032646780,-151.0,0.00024456,7]
[381094054,1756032646790,-151.0,0.00024456,7]
[381094056,1756032646799,-285.18368,0.00024456,7]
[381094058,1756032646809,-150.0,0.00024459,4]
[381094060,1756032646819,-150.0,0.00024465,4]
[381094062,1756032646829,-157.82197178,0.00024467,4]
[381094064,1756032646839,-150.0,0.00024472,4]
[381094066,1756032646849,-500.0,0.00024473,2]
[381094068,1756032646858,-500.0,0.00024473,2]
[381094070,1756032646867,-500.0,0.00024473,2]
[381094072,1756032646877,-500.0,0.00024473,2]
[381094074,1756032646886,-486.32212116,0.00024473,2]
[381094076,1756032646895,-500.20349937,0.00024473,2]
[381094078,1756032646905,-500.0,0.00024473,2]
[381094080,1756032646914,-500.0,0.00024473,2]
[381094082,1756032646923,-500.77803273,0.00024473,2]
[381094084,1756032646933,-500.0,0.00024473,2]
[381094086,1756032646942,-454.43916054,0.00024473,2]
[381094088,1756032646951,-150.0,0.00024476,4]
[381094089,1756032646962,-150.0,0.0002448,4]
[381094090,1756032646972,-150.0,0.00024483,4]
[381094091,1756032646981,-151.0,0.0002449,7]
[381094092,1756032646991,-151.0,0.0002449,7]
[381094093,1756032647000,-151.0,0.0002449,7]
[381094094,1756032647010,-151.0,0.0002449,7]
[381094095,1756032647021,-151.0,0.0002449,7]
[381094096,1756032647030,-151.0,0.0002449,7]
[381094097,1756032647040,-3743.8,0.0002449,2]
[381094098,1756032647050,-168.0,0.00024492,2]
[381094099,1756032647059,-157.82197178,0.00024494,4]
[381094100,1756032647069,-150.0,0.00024498,4]
[381094101,1756032647078,-731.2945685,0.00024499,7]
[381094102,1756032647087,-669.03740165,0.00024499,2]
[381094103,1756032647096,-300.0,0.00024499,2]
[381094104,1756032647105,-666.0,0.00024499,2]
[381094105,1756032647114,-712.43942964,0.00024499,2]
[381094106,1756032647123,-300.0,0.00024499,2]
[381094107,1756032647132,-300.0,0.00024499,2]
[381094108,1756032647141,-69594.45908472,0.000245,7]
[381094109,1756032647150,-16986.06,0.000245,2]
[381094110,1756032647160,-406254.51704823,0.000245,2]
[381094111,1756032647169,-1174.66496666,0.000245,2]
[381094112,1756032647178,-151.0,0.000245,7]
[381094113,1756032647187,-301.75608,0.000245,7]
[381094114,1756032647196,-151.0,0.000245,7]
[381094115,1756032647205,-151.0,0.000245,7]
[381094116,1756032647214,-204.852396,0.000245,7]
[381094117,1756032647223,-151.0,0.000245,7]
[381094118,1756032647233,-151.0,0.000245,7]
[381094119,1756032647242,-171.044596,0.000245,7]
[381094120,1756032647251,-171.044596,0.000245,7]
[381094121,1756032647261,-171.044596,0.000245,7]
[381094122,1756032647271,-171.044596,0.000245,7]
[381094123,1756032647280,-171.044596,0.000245,7]
[381094124,1756032647290,-171.044596,0.000245,7]
[381094125,1756032647299,-171.044596,0.000245,7]
[381094126,1756032647308,-171.044596,0.000245,7]
[381094127,1756032647317,-151.0,0.000245,7]
[381094128,1756032647326,-151.0,0.000245,7]
[381094129,1756032647335,-151.0,0.000245,7]
[381094131,1756032647344,-151.0,0.000245,7]
[381094132,1756032647354,-151.0,0.000245,7]
[381094133,1756032647364,-165.403998,0.000245,7]
[381094134,1756032647374,-151.0,0.000245,7]
[381094135,1756032647383,-844.35788172,0.000245,7]
[381094136,1756032647394,-151.0,0.000245,7]
[381094137,1756032647403,-151.0,0.000245,7]
[381094138,1756032647413,-151.0,0.000245,7]
[381094139,1756032647423,-151.0,0.000245,7]
[381094140,1756032647433,-151.0,0.000245,7]
[381094141,1756032647442,-151.0,0.000245,7]
[381094142,1756032647452,-151.0,0.000245,7]
[381094143,1756032647461,-151.0,0.000245,7]
[381094144,1756032647471,-151.0,0.000245,7]
[381094145,1756032647481,-151.0,0.000245,7]
[381094146,1756032647490,-186.713984,0.000245,7]
[381094147,1756032647499,-151.0,0.000245,7]
[381094148,1756032647509,-151.0,0.000245,7]
[381094149,1756032647519,-151.0,0.000245,7]
[381094150,1756032647529,-151.0,0.000245,7]
[381094151,1756032647539,-151.0,0.000245,7]
[381094152,1756032647548,-151.0,0.000245,7]
[381094153,1756032647558,-151.0,0.000245,7]
[381094154,1756032647567,-151.0,0.000245,7]
[381094155,1756032647578,-151.0,0.000245,7]
[381094156,1756032647593,-176.234037,0.000245,7]
[381094157,1756032647603,-176.234037,0.000245,7]
[381094158,1756032647612,-176.234037,0.000245,7]
[381094159,1756032647622,-176.234037,0.000245,7]
[381094160,1756032647633,-176.234037,0.000245,7]
[381094161,1756032647643,-176.234037,0.000245,7]
[381094162,1756032647652,-176.234037,0.000245,7]
[381094163,1756032647662,-176.234037,0.000245,7]
[381094164,1756032647671,-151.0,0.000245,7]
[381094165,1756032647682,-151.0,0.000245,7]
[381094166,1756032647691,-151.0,0.000245,7]
[381094167,1756032647701,-151.0,0.000245,7]
[381094168,1756032647710,-151.0,0.000245,7]
[381094169,1756032647720,-151.0,0.000245,7]
[381094170,1756032647729,-151.0,0.000245,7]
[381094171,1756032647738,-151.0,0.000245,7]
[381094173,1756032647748,-212.11701231,0.000245,7]
[381094175,1756032647757,-303.951748,0.000245,7]
[381094176,1756032647767,-303.951748,0.000245,7]
[381094178,1756032647776,-303.951748,0.000245,7]
[381094179,1756032647786,-303.951748,0.000245,7]
[381094180,1756032647796,-303.951748,0.000245,7]
[381094181,1756032647805,-303.951748,0.000245,7]
[381094182,1756032647814,-303.951748,0.000245,7]
[381094183,1756032647824,-303.951748,0.000245,7]
[381094184,1756032647833,-5302.42,0.000245,2]
[381094185,1756032647843,-151.0,0.000245,7]
[381094186,1756032647852,-151.0,0.000245,7]
[381094187,1756032647861,-151.0,0.000245,7]
[381094188,1756032647871,-151.0,0.000245,7]
[381094189,1756032647880,-151.0,0.000245,7]
[381094190,1756032647889,-151.0,0.000245,7]
[381094191,1756032647899,-151.0,0.000245,7]
[381094192,1756032647910,-151.0,0.000245,7]
[381094193,1756032647919,-151.0,0.000245,7]
[381094194,1756032647928,-151.0,0.000245,7]
[381094195,1756032647938,-151.0,0.000245,7]
[381094196,1756032647947,-151.0,0.000245,7]
[381094197,1756032647957,-151.0,0.000245,7]
[381094198,1756032647967,-151.0,0.000245,7]
[381094199,1756032647977,-151.0,0.000245,7]
[381094200,1756032647986,-151.0,0.000245,7]
[381094201,1756032647996,-151.0,0.000245,7]
[381094202,1756032648005,-157.82197178,0.00024521,4]
[381094203,1756032648015,-150.0,0.00024523,4]
[381094204,1756032648025,-150.0,0.00024527,4]
[381094205,1756032648034,-150.0,0.00024527,4]
[381094206,1756032648044,-150.0,0.00024527,4]
[381094207,1756032648054,-150.0,0.00024534,4]
[381094208,1756032648064,-150.0,0.00024535,4]
[381094209,1756032648074,-157.82197178,0.00024548,4]
[381094210,1756032648083,-770.06,0.0002455,2]
[381094211,1756032648093,-195.06,0.00024564,2]
[381094212,1756032648103,-157.82197178,0.00024575,4]
[381094214,1756032648113,-150.0,0.00024579,4]
[381094215,1756032648123,-150.0,0.00024581,4]
[381094217,1756032648133,-150.0,0.00024588,4]
[381094219,1756032648142,-150.0,0.00024596,4]
[381094220,1756032648152,-2651.2,0.000246,2]
[381094221,1756032648161,-157.82197178,0.00024602,4]
[381094222,1756032648172,-150.0,0.00024602,4]
[381094224,1756032648181,-150.0,0.00024617,4]
[381094225,1756032648191,-157.82197178,0.00024629,4]
[381094226,1756032648200,-150.0,0.0002463,4]
[381094227,1756032648210,-150.0,0.0002463,4]
[381094228,1756032648220,-150.0,0.00024639,4]
[381094229,1756032648230,-150.0,0.0002464,4]
[381094230,1756032648239,-150.0,0.00024651,4]
[381094231,1756032648249,-150.0,0.00024651,4]
[381094232,1756032648258,-157.82197178,0.00024656,4]
[381094233,1756032648268,-1000.0,0.00024658,2]
[381094234,1756032648280,-500.0,0.00024658,2]
[381094235,1756032648290,-150.0,0.00024665,4]
[381094236,1756032648301,-150.0,0.00024682,4]
[381094237,1756032648310,-157.82197178,0.00024683,4]
[381094238,1756032648319,-238.0,0.00024686,2]
[381094239,1756032648330,-3850.07722654,0.00024689,2]
[381094240,1756032648340,-150.0,0.00024693,4]
[381094241,1756032648349,-150.0,0.00024698,4]
[381094242,1756032648359,-1566.76,0.000247,2]
[381094243,1756032648369,-376.01,0.000247,2]
[381094244,1756032648378,-1410.06,0.000247,2]
[381094245,1756032648388,-159.54900556,0.000247,2]
[381094246,1756032648398,-884.88576412,0.000247,2]
[381094247,1756032648408,-1325.6,0.000247,2]
[381094248,1756032648418,-150.0,0.00024701,4]
[381094249,1756032648427,-1000.0,0.00024705,2]
[381094250,1756032648437,-157.82197178,0.00024711,4]
[381094251,1756032648446,-150.0,0.00024724,4]
[381094252,1756032648456,-238.0,0.00024726,2]
[381094253,1756032648465,-150.0,0.00024733,4]
[381094254,1756032648475,-150.0,0.00024733,4]
[381094255,1756032648484,-150.0,0.00024733,4]
[381094256,1756032648494,-168.0,0.00024737,2]
[381094257,1756032648503,-157.82197178,0.00024738,4]
[381094258,1756032648514,-150.0,0.00024746,4]
[381094259,1756032648525,-150.0,0.00024756,4]
[381094260,1756032648535,-157.82197178,0.00024765,4]
[381094261,1756032648545,-199.0,0.0002477,2]
[381094262,1756032648555,-500.0,0.00024773,2]
[381094263,1756032648565,-500.0,0.00024773,2]
[381094264,1756032648576,-500.34358992,0.00024773,2]
[381094265,1756032648589,-500.0,0.00024773,2]
[381094266,1756032648600,-279.44644639,0.00024773,2]
[381094267,1756032648610,-500.0,0.00024773,2]
[381094268,1756032648620,-500.4275363,0.00024773,2]
[381094269,1756032648629,-19581.66156647,0.00024783,2]
[381094270,1756032648639,-150.0,0.00024785,4]
[381094271,1756032648648,-150.0,0.00024785,4]
[381094272,1756032648658,-223.7731217,0.0002479,2]
[381094273,1756032648667,-157.82197178,0.00024792,4]
[381094274,1756032648676,-1202.11057742,0.00024797,2]
[381094275,1756032648686,-150.0,0.00024798,4]
[381094276,1756032648695,-193.41143341,0.00024799,2]
[381094277,1756032648705,-300.0,0.00024799,10]
[381094278,1756032648715,-300.0,0.00024799,10]
[381094279,1756032648724,-2381.3119,0.00024799,2]
[381094280,1756032648733,-150.0,0.00024799,2]
[381094281,1756032648743,-1000.0,0.00024799,2]
[381094282,1756032648752,-3002.35,0.000248,2]
[381094283,1756032648762,-3000.0,0.000248,2]
[381094284,1756032648773,-3000.0,0.000248,2]
[381094285,1756032648783,-3000.0,0.000248,2]
[381094286,1756032648793,-2256.12464702,0.000248,2]
[381094364,1756032650852,-150.0,0.00023,2]
[381094365,1756032650862,-218.251004,0.00024,7]
[381094366,1756032650873,-151.0,0.00024,7]
[381094367,1756032650883,-151.0,0.00024,7]
[381094368,1756032650893,-151.0,0.000244,7]
[381094369,1756032650904,-151.0,0.000245,7]
[381094370,1756032650913,-151.0,0.000245,7]
[381094371,1756032650923,-151.0,0.000245,7]
[381094372,1756032650932,-472.13786985,0.000248,2]
[381094373,1756032650944,-271.73748313,0.000248,2]
[381094374,1756032650953,-2605.38,0.000248,2]
[381094375,1756032650963,-844.35788172,0.000248,3]
[381094376,1756032650972,-47434.99003221,0.000248,2]
[381094377,1756032650983,-3807.10688827,0.000248,2]
[381094378,1756032651423,-915.00997218,0.000149,2]
[381094379,1756032651433,-927.19605625,0.000244,2]
[381094380,1756032651442,-21498.04693817,0.000248,2]
[381094381,1756032651453,-4931.22292789,0.000248,2]
[381094382,1756032651464,-1224.4999766,0.000248,2]
[381094383,1756032651475,-2974.02707211,0.000248,2]
[381094384,1756032651500,-28310.160384,0.000248,2]
[381094385,1756032651781,-978.1952307,0.000248,2]
[381094386,1756032651828,-151.0,0.00024,7]
[381094387,1756032651844,-1000.88241315,0.000248,2]
[381094388,1756032651862,-450.85402016,0.000248,2]
[381094389,1756032651875,-839.9099692,0.000248,2]
[381094390,1756032651888,-572.65026246,0.000248,2]
[381094408,1756033257864,907.543407,0.0002876,120]
[381094422,1756033640585,-279.27715997,0.00013699,2]
[381094435,1756033802654,266.0,0.00013,120]
[381094446,1756033832207,-20.72284003,0.00013699,2]
[381094447,1756033832217,-275.3,0.00013699,2]
[381094448,1756033832226,-151.050934,0.00019988,2]
[381094449,1756033832235,-70.96622597,0.00019999,2]
[381094450,1756033832246,-229.03377403,0.00019999,2]
[381094451,1756033832255,-1200.0,0.00019999,2]
[381094452,1756033832265,-300.0,0.00019999,2]
[381094453,1756033832274,-12337.60887172,0.0002,2]
[381094454,1756033832300,-17662.39446747,0.0002,2]
[381094455,1756033832309,-275.3,0.00020187,2]
[381094456,1756033832318,-300.0,0.00021777,2]
[381094457,1756033832329,-1186.0,0.00021881,2]
[381094458,1756033832339,-151.050934,0.00021975,2]
[381094459,1756033832348,-593.92,0.000221,2]
[381094460,1756033832357,-200.0,0.00022694,2]
[381094461,1756033832366,-458.63746581,0.00022725,2]
[381094462,1756033832376,-1000.0,0.00022748,2]
[381094463,1756033832389,-16334.47685083,0.000228,3]
[381094464,1756033832398,-458.63746581,0.000228,3]
[381094465,1756033832408,-844.35788172,0.00022989,2]
[381094466,1756033832418,-844.35788172,0.00023,3]
[381094467,1756033832428,-212.11701231,0.00023127,2]
[381094468,1756033832437,-1578.97,0.00023128,2]
[381094469,1756033832446,-593.92,0.00023309,2]
[381094470,1756033832455,-5000.0,0.00023342,2]
[381094471,1756033832465,-666.0,0.00023541,3]
[381094472,1756033832475,-1093.07,0.00023611,30]
[381094473,1756033832484,-267.46074303,0.00023624,2]
[381094474,1756033832493,-10166.77,0.00023638,2]
[381094475,1756033832502,-2000.0,0.000238,2]
[381094476,1756033832511,-1000.0,0.000238,2]
[381094477,1756033832521,-150.0,0.000238,2]
[381094478,1756033832530,-168.0,0.00023812,2]
[381094479,1756033832539,-9353.11823049,0.00023862,2]
[381094480,1756033832552,-722.46133654,0.00023862,2]
[381094481,1756033832571,-341.76467541,0.00023862,2]
[381094484,1756033832594,-1437.20404954,0.00023862,2]
[381094486,1756033832604,-155.37178768,0.00023862,2]
[381094488,1756033832614,-151.0,0.00023886,2]
[381094520,1756033832916,-450.46550278,0.00023886,2]
[381094523,1756033832930,-270.66215257,0.00023886,2]
[381094525,1756033832940,-600.0,0.00023886,2]
[381094526,1756033832949,-334.5472959,0.00023886,2]
[381094528,1756033832958,-500.0,0.00023886,2]
[381094530,1756033832967,-552.61183182,0.00023886,2]
[381094532,1756033832977,-88590.6658,0.000239,2]
[381094534,1756033832986,-151.050934,0.00023962,2]
[381094535,1756033832996,-151.050934,0.00023962,4]
[381094536,1756033833005,-5000.0,0.00024,5]
[381094537,1756033833014,-900.0,0.00024,9]
[381094538,1756033833023,-900.0,0.00024,9]
[381094539,1756033833033,-900.0,0.00024,9]
[381094540,1756033833043,-900.0,0.00024,9]
[381094541,1756033833053,-900.0,0.00024,9]
[381094542,1756033833062,-900.0,0.00024,9]
[381094543,1756033833072,-900.0,0.00024,9]
[381094544,1756033833081,-900.0,0.00024,9]
[381094545,1756033833091,-166.04,0.00024091,2]
[381094546,1756033833100,-1184.83,0.00024091,2]
[381094547,1756033833109,-408.42,0.00024091,2]
[381094548,1756033833119,-173.67,0.00024091,2]
[381094549,1756033833129,-544.95,0.00024091,2]
[381094550,1756033833138,-150.0,0.00024091,2]
[381094551,1756033833148,-666.97087456,0.00024128,2]
[381094552,1756033833157,-11854.54829192,0.00024167,2]
[381094553,1756033833167,-168.0,0.00024186,2]
[381094554,1756033833177,-353.394,0.0002422,6]
[381094555,1756033833186,-168.0,0.00024223,2]
[381094556,1756033833196,-151.050934,0.0002424,4]
[381094557,1756033833205,-168.0,0.0002436,2]
[381094558,1756033833215,-151.050934,0.00024399,10]
[381094559,1756033833224,-168.0,0.00024437,2]
[381094560,1756033833234,-155.37178765,0.00024472,2]
[381094561,1756033833244,-11854.54829192,0.00024473,2]
[381094562,1756033833253,-666.97087457,0.00024482,2]
[381094563,1756033833263,-1000.0,0.00024514,2]
[381094564,1756033833272,-151.050934,0.00024519,4]
[381094565,1756033833282,-593.92,0.0002455,2]
[381094566,1756033833291,-168.0,0.00024553,2]
[381094567,1756033833301,-168.0,0.00024559,2]
[381094568,1756033833311,-1014.42201866,0.00024574,2]
[381094569,1756033833322,-151.050934,0.00024599,10]
[381094570,1756033833331,-200.0,0.00024602,2]
[381094571,1756033833340,-332.908,0.00024651,2]
[381094572,1756033833349,-1000.0,0.00024658,2]
[381094573,1756033833358,-150.0,0.00024658,2]
[381094574,1756033833368,-150.0,0.00024658,2]
[381094575,1756033833379,-500.0,0.00024658,2]
[381094576,1756033833388,-150.0,0.00024658,2]
[381094577,1756033833398,-150.54381171,0.00024658,2]
[381094578,1756033833407,-244.84615314,0.00024658,2]
[381094579,1756033833417,-200.0,0.00024658,2]
[381094580,1756033833426,-216.0,0.0002469,3]
[381094581,1756033833436,-1440.66487955,0.000247,4]
[381094582,1756033833445,-1440.66487955,0.000247,4]
[381094583,1756033833455,-266.50521262,0.000247,2]
[381094584,1756033833465,-1000.0,0.000247,2]
[381094585,1756033833474,-2500.0,0.000247,2]
[381094586,1756033833484,-168.0,0.00024723,2]
[381094587,1756033833493,-1170.25,0.00024724,2]
[381094588,1756033833502,-12624.4789914,0.00024734,2]
[381094589,1756033833512,-1000.0,0.00024737,2]
[381094590,1756033833521,-168.0,0.00024762,2]
[381094591,1756033833530,-500.0,0.00024773,2]
[381094592,1756033833540,-150.62981479,0.00024773,2]
[381094593,1756033833549,-150.0,0.00024773,2]
[381094594,1756033833559,-152.52009648,0.00024773,2]
[381094595,1756033833569,-150.0,0.00024773,2]
[381094596,1756033833578,-150.0,0.00024773,2]
[381094597,1756033833588,-150.0,0.00024773,2]
[381094598,1756033833597,-150.0,0.00024773,2]
[381094599,1756033833607,-150.0,0.00024773,2]
[381094600,1756033833617,-150.0,0.00024773,2]
[381094601,1756033833626,-150.0,0.00024773,2]
[381094602,1756033833636,-150.0,0.00024773,2]
[381094603,1756033833645,-240.4467272,0.00024773,2]
[381094604,1756033833654,-11854.54829192,0.00024778,2]
[381094605,1756033833663,-3099.47162446,0.0002478,2]
[381094606,1756033833673,-671.8166163,0.00024797,2]
[381094607,1756033833683,-2945.4199475,0.00024797,2]
[381094608,1756033833692,-151.050934,0.00024798,4]
[381094609,1756033833702,-157.217079,0.00024798,4]
[381094610,1756033833712,-150.0,0.00024799,2]
[381094611,1756033833721,-151.050934,0.00024799,10]
[381094612,1756033833731,-2793.77,0.00024799,2]
[381094613,1756033833741,-1000.0,0.00024799,2]
[381094614,1756033833751,-3193.07,0.000248,7]
[381094615,1756033833760,-844.35788172,0.000248,7]
[381094616,1756033833770,-206.92906337,0.000248,2]
[381094617,1756033833781,-500.0,0.000248,2]
[381094618,1756033833791,-500.0,0.000248,2]
[381094619,1756033833801,-500.0,0.000248,2]
[381094620,1756033833811,-500.0,0.000248,2]
[381094621,1756033833821,-791.0,0.000248,2]
[381094622,1756033833831,-500.0,0.000248,2]
[381094623,1756033833841,-500.0,0.000248,2]
[381094624,1756033833853,-500.0,0.000248,2]
[381094625,1756033833862,-500.0,0.000248,2]
[381094626,1756033833872,-500.0,0.000248,2]
[381094627,1756033833881,-500.0,0.000248,2]
[381094628,1756033833891,-500.0,0.000248,2]
[381094629,1756033833901,-500.0,0.000248,2]
[381094630,1756033833913,-500.0,0.000248,2]
[381094631,1756033833923,-500.0,0.000248,2]
[381094632,1756033833932,-500.0,0.000248,2]
[381094633,1756033833942,-500.0,0.000248,2]
[381094634,1756033833952,-500.0,0.000248,2]
[381094635,1756033833962,-500.0,0.000248,2]
[381094636,1756033833973,-500.0,0.000248,2]
[381094637,1756033833991,-500.0,0.000248,2]
[381094638,1756033834000,-500.0,0.000248,2]
[381094639,1756033834010,-500.0,0.000248,2]
[381094640,1756033834019,-500.0,0.000248,2]
[381094641,1756033834028,-500.0,0.000248,2]
[381094642,1756033834038,-500.0,0.000248,2]
[381094643,1756033834048,-500.0,0.000248,2]
[381094644,1756033834058,-500.0,0.000248,2]
[381094645,1756033834068,-500.0,0.000248,2]
[381094646,1756033834079,-500.0,0.000248,2]
[381094647,1756033834090,-500.0,0.000248,2]
[381094648,1756033834099,-500.0,0.000248,2]
[381094649,1756033834110,-500.0,0.000248,2]
[381094650,1756033834119,-500.0,0.000248,2]
[381094651,1756033834129,-910.0,0.000248,2]
[381094652,1756033834139,-500.0,0.000248,2]